bitfinex-derivatives/quotes_BTCF0:USTF0_20251217
["timestamp","ask_amount","ask_price","bid_price","bid_amount"]
[1765941858986,0.07362028,87464.0,87463.0,0.06176059]
[1765941859591,0.07462028,87464.0,87463.0,0.06176059]
[1765941860291,0.07462028,87464.0,87463.0,0.00011504]
[1765941860494,0.07462028,87464.0,87463.0,0.02781504]
[1765941860694,0.07462028,87464.0,87463.0,0.05755504]
[1765941860889,0.07362028,87464.0,87463.0,0.05755504]
[1765941861094,0.07462028,87464.0,87463.0,0.05755504]
[1765941862394,0.07362028,87464.0,87463.0,0.05755504]
[1765941864690,0.09790152,87464.0,87463.0,0.00011504]
[1765941865592,0.09790152,87464.0,87463.0,0.05755504]
[1765941867096,0.09890152,87464.0,87463.0,0.05755504]
[1765941867701,0.09790152,87464.0,87463.0,0.05755504]
[1765941868204,0.10933722,87464.0,87463.0,0.05755504]
[1765941868803,0.10933722,87464.0,87463.0,0.05855504]
[1765941869702,0.10933722,87464.0,87463.0,0.05755504]
[1765941869905,0.10933722,87464.0,87463.0,0.05855504]
[1765941870104,0.08024722,87464.0,87463.0,0.05855504]
[1765941870404,0.10933722,87464.0,87463.0,0.05855504]
[1765941870596,0.03579722,87464.0,87463.0,0.05855504]
[1765941870798,0.09252722,87464.0,87463.0,0.05855504]
[1765941871006,0.10933722,87464.0,87463.0,0.05855504]
[1765941871705,0.10933722,87464.0,87463.0,0.05755504]
[1765941872004,0.10933722,87464.0,87463.0,0.05855504]
[1765941875204,0.10933722,87464.0,87463.0,0.05755504]
[1765941877106,0.07362028,87464.0,87463.0,0.05755504]
[1765941877299,0.07362028,87464.0,87463.0,0.11923297]
[1765941878505,0.07362028,87464.0,87463.0,0.05855504]
[1765941879108,0.07362028,87464.0,87463.0,0.05755504]
[1765941879511,0.07362028,87464.0,87463.0,0.05855504]
[1765941880109,0.07362028,87464.0,87463.0,0.05755504]
[1765941880698,0.07362028,87464.0,87463.0,0.00011504]
[1765941880898,0.0978885,87464.0,87463.0,0.00011504]
[1765941883306,0.0988885,87464.0,87463.0,0.00011504]
[1765941883710,0.4596885,87464.0,87463.0,0.00011504]
[1765941889111,0.4596885,87464.0,87463.0,0.02948504]
[1765941889611,0.4596885,87464.0,87463.0,0.05935504]
[1765941890012,0.43542028,87464.0,87463.0,0.05935504]
[1765941890710,0.43542028,87464.0,87463.0,0.00011504]
[1765941894013,0.43542028,87464.0,87463.0,0.02948504]
[1765941896018,0.43542028,87464.0,87463.0,0.05935504]
[1765941898121,0.43542028,87464.0,87463.0,0.00011504]
[1765941898308,0.45542028,87464.0,87463.0,0.00011504]
[1765941898622,0.0692059,87463.0,87462.0,0.04112234]
[1765941898824,0.0692059,87463.0,87458.0,0.00228683]
[1765941898825,0.05777,87459.0,87458.0,0.00228683]
[1765941899310,0.07777,87459.0,87458.0,0.00228683]
[1765941899511,0.10219724,87459.0,87458.0,0.00228683]
[1765941900826,0.08219724,87459.0,87458.0,0.00228683]
[1765941903823,0.08219724,87459.0,87458.0,0.06152683]
[1765941904526,0.41914028,87464.0,87463.0,0.05813]
[1765941904723,0.44355463,87464.0,87463.0,0.05813]
[1765941904920,8.028e-05,87464.0,87463.0,0.11980793]
[1765941905124,8.028e-05,87464.0,87463.0,0.05813]
[1765941905313,0.00017148,87472.0,87471.0,0.05813]
[1765941905728,0.00017148,87472.0,87471.0,0.0695648]
[1765941905924,0.00017148,87472.0,87471.0,0.4303648]
[1765941907527,0.37841,87490.0,87471.0,0.4303648]
[1765941907528,0.41906,87490.0,87489.0,0.05813]
[1765941907828,0.3608,87490.0,87489.0,0.05813]
[1765941908125,0.0412216,87496.0,87495.0,0.05813]
[1765941908422,0.0696916,87496.0,87495.0,0.05813]
[1765941909824,0.37841,87500.0,87487.0,0.05830148]
[1765941909825,0.05826,87488.0,87487.0,0.05830148]
[1765941911733,0.05826,87488.0,87487.0,0.05930148]
[1765941913217,0.05826,87488.0,87487.0,0.00117148]
[1765941915032,0.05926,87488.0,87487.0,0.00017148]
[1765941915632,0.05826,87488.0,87487.0,0.00017148]
[1765941915932,0.05926,87488.0,87487.0,0.00017148]
[1765941921028,0.42006,87488.0,87487.0,0.00017148]
[1765941926648,0.05826,87472.0,87471.0,0.39063]
[1765941926840,0.05826,87472.0,87471.0,0.41893]
[1765941927038,0.02979,87472.0,87471.0,0.41893]
[1765941927343,0.41906,87479.0,87478.0,0.05813]
[1765941928741,0.4304938,87479.0,87478.0,0.05913]
[1765941931348,0.4304938,87479.0,87478.0,0.05813]
[1765941931548,0.4304938,87479.0,87478.0,0.05913]
[1765941932338,0.4304938,87479.0,87478.0,0.10003639]
[1765941932534,0.4304938,87479.0,87478.0,0.09903639]
[1765941933453,0.4304938,87479.0,87478.0,0.05813]
[1765941934352,0.4304938,87479.0,87478.0,0.11963609]
[1765941935456,0.4304938,87479.0,87478.0,0.05813]
[1765941938545,0.0696938,87479.0,87478.0,0.05813]
[1765941939256,0.07165,87472.0,87471.0,0.14089806]
[1765941939442,0.07165,87472.0,87471.0,0.05879]
[1765941940252,0.05743,87472.0,87471.0,0.05879]
[1765941940559,0.05743,87472.0,87471.0,0.05979]
[1765941941649,0.05743,87472.0,87471.0,0.14189806]
[1765941942859,0.05743,87472.0,87471.0,0.14289806]
[1765941943556,0.05743,87472.0,87471.0,0.14189806]
[1765941943754,0.05743,87472.0,87471.0,0.14289806]
[1765941946459,0.05743,87472.0,87471.0,0.06079]
[1765941946857,0.05743,87472.0,87471.0,0.42159]
[1765941958568,0.05743,87472.0,87471.0,0.42059]
[1765941958766,0.05743,87472.0,87471.0,0.42159]
[1765941959163,0.05743,87472.0,87471.0,0.06079]
[1765941959372,0.05743,87472.0,87471.0,0.42159]
[1765941960169,0.05743,87472.0,87471.0,0.42059]
[1765941960370,0.05743,87472.0,87471.0,0.42159]
[1765941960754,0.05743,87472.0,87471.0,0.42059]
[1765941960959,0.05743,87472.0,87471.0,0.42159]
[1765941961682,0.05743,87472.0,87471.0,0.42059]
[1765941961970,0.05743,87472.0,87471.0,0.42159]
[1765941963073,0.05743,87472.0,87471.0,0.42059]
[1765941963276,0.05743,87472.0,87471.0,0.42159]
[1765941964566,0.05743,87472.0,87471.0,0.43421]
[1765941964767,0.02744,87472.0,87471.0,0.43321]
[1765941964968,0.0114342,87476.0,87475.0,0.0677843]
[1765941964969,0.0403842,87476.0,87475.0,0.0677843]
[1765941965275,0.0694942,87476.0,87475.0,0.0677843]
[1765941967086,0.0694942,87476.0,87475.0,0.0687843]
[1765941967575,0.0694942,87476.0,87475.0,0.05635]
[1765941967778,0.0694942,87476.0,87475.0,0.05735]
[1765941969271,0.0694942,87476.0,87475.0,0.05635]
[1765941969472,0.0694942,87476.0,87475.0,0.05735]
[1765941970368,0.0694942,87476.0,87475.0,0.05635]
[1765941971077,0.0694942,87476.0,87475.0,0.05735]
[1765941973079,0.0694942,87476.0,87475.0,0.05635]
[1765941973876,0.0694942,87476.0,87475.0,0.05735]
[1765941974875,0.0694942,87476.0,87475.0,0.05635]
[1765941976486,0.0694942,87476.0,87475.0,0.05735]
[1765941976985,0.0694942,87476.0,87475.0,0.05635]
[1765941977383,0.0694942,87476.0,87468.0,0.0114352]
[1765941977384,0.05806,87470.0,87469.0,0.0285]
[1765941977683,0.05806,87467.0,87466.0,0.05635]
[1765941980875,0.05806,87467.0,87466.0,0.05735]
[1765941983986,0.05806,87467.0,87466.0,0.05635]
[1765941984191,0.05806,87467.0,87466.0,0.05735]
[1765941985489,0.05806,87467.0,87466.0,0.05635]
[1765941985696,0.05806,87467.0,87466.0,0.05735]
[1765941986095,0.05806,87467.0,87466.0,0.05635]
[1765941986296,0.05806,87467.0,87466.0,0.05735]
[1765941987796,0.05806,87467.0,87466.0,0.11890895]
[1765941987987,0.05806,87467.0,87466.0,0.06255895]
[1765941988191,0.05806,87467.0,87466.0,0.001]
[1765941989097,0.069496,87462.0,87461.0,0.09005895]
[1765941989295,0.069496,87462.0,87461.0,0.11790895]
[1765941991198,0.069496,87462.0,87461.0,0.05635]
[1765941992994,0.069496,87462.0,87461.0,0.0285]
[1765941993203,0.069496,87462.0,87461.0,0.05635]
[1765941993606,0.069496,87462.0,87460.0,0.06155895]
[1765941993607,0.05806,87461.0,87460.0,0.06155895]
[1765941993903,0.05806,87461.0,87460.0,0.09005895]
[1765941994105,0.05806,87461.0,87460.0,0.11942895]
[1765941999208,0.05806,87461.0,87460.0,0.0285]
[1765941999401,0.07234,87459.0,87458.0,0.05877683]
[1765942010516,0.05509,87459.0,87458.0,0.05877683]
[1765942014915,0.05526148,87469.0,87461.0,0.02804]
[1765942015116,0.05509,87468.0,87467.0,0.05649]
[1765942015620,0.0665252,87468.0,87467.0,0.05649]
[1765942016117,0.0830652,87468.0,87467.0,0.05649]
[1765942016323,0.0830652,87468.0,87467.0,0.05749]
[1765942016824,0.0830652,87468.0,87467.0,0.05649]
[1765942017027,0.083776,87462.0,87461.0,0.14608895]
[1765942017226,0.083776,87462.0,87461.0,0.14714412]
[1765942017427,0.444576,87462.0,87461.0,0.08553]
[1765942017915,0.444576,87462.0,87461.0,0.05649]
[1765942021122,0.444576,87462.0,87461.0,0.02845]
[1765942021531,0.0665264,87459.0,87458.0,0.12039095]
[1765942026248,0.0665264,87459.0,87458.0,0.05877683]
[1765942028148,0.0833564,87459.0,87458.0,0.05877683]
[1765942040655,0.0665264,87459.0,87458.0,0.05877683]
[1765942053471,0.0833564,87459.0,87458.0,0.05877683]
[1765942053662,0.0833564,87459.0,87458.0,0.00228683]
[1765942053976,0.0833564,87459.0,87458.0,0.03181683]
[1765942054469,0.0833564,87459.0,87458.0,0.06162683]
[1765942064880,0.02705,87459.0,87458.0,0.06162683]
[1765942065082,0.0662355,87466.0,87465.0,0.0543]
[1765942065377,0.09060599,87466.0,87465.0,0.0543]
[1765942066386,0.09160599,87466.0,87465.0,0.0543]
[1765942072990,0.09060599,87466.0,87465.0,0.0543]
[1765942073185,0.09160599,87466.0,87465.0,0.0543]
[1765942075385,0.09060599,87466.0,87465.0,0.0543]
[1765942075592,0.09160599,87466.0,87465.0,0.0543]
[1765942077886,0.09260599,87466.0,87465.0,0.0543]
[1765942078688,0.09160599,87466.0,87465.0,0.0543]
[1765942078894,0.09260599,87466.0,87465.0,0.0543]
[1765942079789,0.09160599,87466.0,87465.0,0.0543]
[1765942079988,0.09260599,87466.0,87465.0,0.0543]
[1765942083091,0.082816,87462.0,87461.0,0.11597942]
[1765942083293,0.46798649,87462.0,87461.0,0.11597942]
[1765942088789,0.46798649,87462.0,87461.0,0.06167942]
[1765942088994,0.0745,87459.0,87458.0,0.00228683]
[1765942089298,0.11887049,87459.0,87458.0,0.00228683]
[1765942090594,0.11887049,87459.0,87441.0,0.1396143]
[1765942090595,0.0688086,87442.0,87441.0,0.1396143]
[1765942090802,0.0826395,87435.0,87434.0,0.1396143]
[1765942091191,0.0712,87435.0,87434.0,0.05739]
[1765942093196,0.0692,87435.0,87434.0,0.05739]
[1765942093397,0.0692,87435.0,87434.0,0.06039]
[1765942094605,0.0692,87435.0,87434.0,0.06339]
[1765942097998,0.43,87435.0,87434.0,0.06339]
[1765942099002,0.43,87435.0,87434.0,0.006]
[1765942099210,0.43,87435.0,87434.0,0.0047491]
[1765942103115,0.43,87435.0,87434.0,0.0342891]
[1765942106715,0.43,87435.0,87434.0,0.0047491]
[1765942109321,0.43,87435.0,87434.0,0.0621391]
[1765942111720,0.43,87435.0,87434.0,0.0047491]
[1765942117213,0.47,87435.0,87434.0,0.0047491]
[1765942119524,0.4944022,87435.0,87434.0,0.0047491]
[1765942122013,0.4944022,87435.0,87434.0,0.0017491]
[1765942122318,0.4944022,87435.0,87434.0,0.0027491]
[1765942122831,0.4944022,87435.0,87434.0,0.001]
[1765942123128,0.4944022,87435.0,87434.0,0.002]
[1765942134833,1.2088022,87435.0,87434.0,0.002]
[1765942144928,0.4944022,87435.0,87434.0,0.002]
[1765942145129,1.2088022,87435.0,87434.0,0.002]
[1765942146741,1.5696022,87435.0,87434.0,0.002]
[1765942151140,1.5696022,87435.0,87426.0,8.755e-05]
[1765942151141,0.0678406,87427.0,87426.0,8.755e-05]
[1765942151337,1.2074828,87427.0,87426.0,8.755e-05]
[1765942152547,1.2074828,87427.0,87426.0,0.00208755]
[1765942153343,1.2074828,87427.0,87426.0,0.00308755]
[1765942155657,1.2353717,87427.0,87426.0,0.00308755]
[1765942155853,0.0678416,87419.0,87418.0,0.00228787]
[1765942156057,1.2074838,87419.0,87418.0,0.00228787]
[1765942157057,1.20760341,87419.0,87418.0,0.00428787]
[1765942157556,1.20760341,87419.0,87418.0,0.00228787]
[1765942158655,0.0678436,87404.0,87403.0,0.11748997]
[1765942158856,0.4286436,87404.0,87403.0,0.05593]
[1765942161264,0.0678441,87400.0,87399.0,0.02704]
[1765942161464,0.0678445,87397.0,87396.0,0.05593]
[1765942161661,0.4286445,87397.0,87396.0,0.05593]
[1765942164364,0.0678453,87391.0,87390.0,0.05593]
[1765942165754,0.0564,87382.0,87381.0,0.06155997]
[1765942165956,0.0678469,87379.0,87378.0,0.00228892]
[1765942167370,0.0728469,87379.0,87378.0,0.00228892]
[1765942167870,0.0708469,87379.0,87378.0,0.00021506]
[1765942168163,0.0728469,87379.0,87378.0,0.00021506]
[1765942169368,0.0698469,87379.0,87378.0,0.00021506]
[1765942169570,0.0718469,87379.0,87378.0,0.00021506]
[1765942169973,0.0698469,87379.0,87378.0,0.00021506]
[1765942170166,0.0728469,87379.0,87378.0,0.00021506]
[1765942170674,0.0698469,87379.0,87378.0,0.00021506]
[1765942170873,0.0728469,87379.0,87378.0,0.00021506]
[1765942171372,0.0738469,87379.0,87378.0,0.00021506]
[1765942171570,0.0738469,87379.0,87378.0,0.05614506]
[1765942171776,0.006,87379.0,87378.0,0.05614506]
[1765942172068,0.03491,87379.0,87378.0,0.05614506]
[1765942172269,0.006,87379.0,87378.0,0.05614506]
[1765942172470,0.006,87379.0,87378.0,0.46759206]
[1765942172868,8.19e-05,87382.0,87381.0,0.0673766]
[1765942173076,8.19e-05,87382.0,87381.0,0.4281766]
[1765942174267,0.00017158,87390.0,87389.0,0.0695056]
[1765942175078,0.00017158,87390.0,87389.0,0.05806]
[1765942175271,0.02847158,87390.0,87389.0,0.05806]
[1765942175578,0.07425158,87390.0,87389.0,0.05806]
[1765942176282,0.05738158,87390.0,87389.0,0.05806]
[1765942177183,0.05938158,87390.0,87389.0,0.05806]
[1765942177579,0.05838158,87390.0,87389.0,0.05806]
[1765942177768,0.06038158,87390.0,87389.0,0.05806]
[1765942178383,0.05938158,87390.0,87389.0,0.05806]
[1765942179885,0.05838158,87390.0,87389.0,0.05806]
[1765942180083,0.05938158,87390.0,87389.0,0.05806]
[1765942180385,0.05838158,87390.0,87389.0,0.05806]
[1765942180586,0.05938158,87390.0,87389.0,0.05806]
[1765942183287,0.05838158,87390.0,87389.0,0.05806]
[1765942196194,0.05838158,87390.0,87389.0,0.02909]
[1765942196395,0.05838158,87390.0,87389.0,0.05819]
[1765942200202,0.08306943,87390.0,87389.0,0.05819]
[1765942201987,0.02585943,87390.0,87389.0,0.05819]
[1765942202994,0.05556943,87390.0,87389.0,0.05819]
[1765942203200,0.08310943,87390.0,87389.0,0.05819]
[1765942205401,0.02585943,87390.0,87389.0,0.05819]
[1765942205895,0.05515943,87390.0,87389.0,0.05819]
[1765942206296,0.08273943,87390.0,87389.0,0.05819]
[1765942208309,0.02585943,87390.0,87389.0,0.05819]
[1765942208507,0.08273943,87390.0,87389.0,0.11974997]
[1765942212914,0.08273943,87390.0,87389.0,0.09064997]
[1765942213113,0.08173943,87390.0,87389.0,0.02909]
[1765942213314,0.08273943,87390.0,87389.0,0.05877]
[1765942214203,0.08373943,87390.0,87389.0,0.05877]
[1765942215411,0.07359,87388.0,87387.0,0.02795]
[1765942215612,0.09827785,87388.0,87387.0,0.02795]
[1765942215810,0.05688,87386.0,87385.0,0.08950997]
[1765942216115,0.07359,87384.0,87383.0,0.11918997]
[1765942216304,0.09827785,87384.0,87383.0,0.11918997]
[1765942217619,0.09827785,87384.0,87383.0,0.06155997]
[1765942217806,0.09827785,87384.0,87383.0,0.08950997]
[1765942218006,0.09927785,87384.0,87383.0,0.08950997]
[1765942218408,0.10127785,87384.0,87383.0,0.11918997]
[1765942218607,0.10127785,87384.0,87383.0,0.05763]
[1765942219615,0.46207785,87384.0,87383.0,0.05763]
[1765942220021,0.0323,87384.0,87383.0,0.05763]
[1765942220317,0.05988,87384.0,87383.0,0.05763]
[1765942220514,0.07497,87384.0,87383.0,0.05763]
[1765942220713,0.07597,87384.0,87383.0,0.11943652]
[1765942222310,0.07497,87384.0,87383.0,0.05763]
[1765942223218,0.07597,87384.0,87383.0,0.05763]
[1765942225518,0.07497,87384.0,87383.0,0.05763]
[1765942225825,0.07397,87384.0,87383.0,0.05763]
[1765942226014,0.07597,87384.0,87383.0,0.05763]
[1765942227422,0.07397,87384.0,87383.0,0.05763]
[1765942227622,0.07597,87384.0,87383.0,0.05763]
[1765942230124,0.05988,87384.0,87383.0,0.05763]
[1765942230313,0.05988,87384.0,87383.0,0.11943652]
[1765942231027,0.05788,87384.0,87383.0,0.11943652]
[1765942231227,0.05888,87384.0,87383.0,0.11943652]
[1765942231526,0.05888,87384.0,87383.0,0.05763]
[1765942231726,0.05888,87384.0,87382.0,0.06180652]
[1765942231727,0.0683263,87383.0,87382.0,0.06180652]
[1765942231927,0.0683263,87383.0,87382.0,0.08975652]
[1765942232523,0.002,87384.0,87383.0,0.05763]
[1765942232723,0.00017158,87390.0,87383.0,0.05763]
[1765942232724,0.00017158,87390.0,87389.0,0.0690756]
[1765942235016,0.3608,87411.0,87410.0,0.05836]
[1765942235220,0.02931,87411.0,87410.0,0.05836]
[1765942235418,0.02931,87416.0,87415.0,0.0698022]
[1765942235722,0.4287814,87421.0,87420.0,0.05836]
[1765942235922,0.45351589,87421.0,87420.0,0.05836]
[1765942236318,0.4287814,87421.0,87420.0,0.07532]
[1765942236518,0.3608,87421.0,87420.0,0.07532]
[1765942237124,0.38978,87421.0,87420.0,0.07532]
[1765942237529,0.41853,87421.0,87420.0,0.07532]
[1765942238131,0.05773,87421.0,87420.0,0.43612]
[1765942238323,0.00017158,87429.0,87428.0,0.05582]
[1765942238643,0.05790158,87429.0,87428.0,0.05582]
[1765942239435,0.05890158,87429.0,87428.0,0.05582]
[1765942240735,0.05790158,87429.0,87428.0,0.05582]
[1765942240936,0.05990158,87429.0,87428.0,0.05582]
[1765942241835,0.05890158,87429.0,87428.0,0.05582]
[1765942242039,0.05990158,87429.0,87428.0,0.05582]
[1765942243227,0.05773,87422.0,87421.0,0.41662]
[1765942243428,0.05773,87413.0,87412.0,0.05599158]
[1765942243946,0.05773,87413.0,87412.0,0.02862158]
[1765942244439,0.05773,87413.0,87412.0,0.05599158]
[1765942244635,0.05773,87413.0,87412.0,0.05799158]
[1765942245241,0.05973,87413.0,87412.0,0.05699158]
[1765942245536,0.06073,87413.0,87412.0,0.05599158]
[1765942247331,0.069174,87401.0,87400.0,0.05582]
[1765942248042,0.41853,87401.0,87400.0,0.05582]
[1765942249943,0.3608,87401.0,87400.0,0.05582]
[1765942250133,0.38978,87401.0,87400.0,0.05582]
[1765942250329,0.001,87401.0,87400.0,0.05582]
[1765942250730,0.05790158,87409.0,87408.0,0.05582]
[1765942252238,0.05890158,87409.0,87408.0,0.05582]
[1765942253528,0.05790158,87409.0,87408.0,0.05582]
[1765942253731,0.05890158,87409.0,87408.0,0.05582]
[1765942254144,0.05790158,87409.0,87408.0,0.05582]
[1765942254342,0.05990158,87409.0,87408.0,0.05582]
[1765942254541,0.05773,87398.0,87397.0,0.41662]
[1765942256232,0.0691744,87398.0,87397.0,0.05582]
[1765942256434,0.05773,87389.0,87388.0,0.54829976]
[1765942256633,0.05773,87389.0,87388.0,0.41662]
[1765942257834,0.05773,87389.0,87388.0,0.41762]
[1765942258639,0.05773,87389.0,87388.0,0.41662]
[1765942263749,0.0114456,87390.0,87389.0,0.05582]
[1765942263937,0.0404256,87390.0,87389.0,0.05582]
[1765942264343,0.0691756,87390.0,87389.0,0.05582]
[1765942264951,0.067075,87394.0,87393.0,0.0556]
[1765942265142,0.038575,87394.0,87393.0,0.0556]
[1765942265647,0.067075,87394.0,87393.0,0.0556]
[1765942265948,0.05563,87394.0,87393.0,0.0556]
[1765942266642,0.05663,87394.0,87393.0,0.067045]
[1765942267242,0.05563,87394.0,87393.0,0.067045]
[1765942267750,0.0401547,87396.0,87395.0,0.06544]
[1765942268156,0.0684047,87396.0,87395.0,0.06544]
[1765942268547,0.0114447,87396.0,87395.0,0.06544]
[1765942269344,0.0684047,87396.0,87395.0,0.06544]
[1765942269548,0.0684047,87396.0,87395.0,0.05667]
[1765942269855,0.0694047,87396.0,87395.0,0.05667]
[1765942270154,0.0684047,87396.0,87395.0,0.05667]
[1765942270844,0.0694047,87396.0,87395.0,0.05667]
[1765942278856,0.0868347,87396.0,87395.0,0.05667]
[1765942280354,0.0694047,87396.0,87395.0,0.05667]
[1765942281956,0.0684047,87396.0,87395.0,0.05667]
[1765942282156,0.0694047,87396.0,87395.0,0.05667]
[1765942283053,0.001,87396.0,87395.0,0.05667]
[1765942283259,0.001,87396.0,87395.0,0.41747]
[1765942283757,0.0684038,87403.0,87402.0,0.05667]
[1765942283960,0.09381875,87403.0,87402.0,0.05667]
[1765942286252,0.0124438,87403.0,87402.0,0.05667]
[1765942286672,0.001,87403.0,87402.0,0.05667]
[1765942286961,0.3608,87411.0,87402.0,0.05667]
[1765942286962,0.3608,87411.0,87408.0,0.0736]
[1765942287154,0.02558961,87409.0,87408.0,0.0736]
[1765942287362,0.01161448,87409.0,87408.0,0.0850431]
[1765942287866,0.00017158,87409.0,87408.0,0.0850431]
[1765942288362,0.00017158,87409.0,87408.0,0.14675704]
[1765942288961,0.00017158,87409.0,87408.0,0.0850431]
[1765942289356,0.00017158,87409.0,87408.0,0.14773787]
[1765942290062,0.00017158,87409.0,87408.0,0.0850431]
[1765942290252,0.00017158,87409.0,87408.0,0.0860431]
[1765942291251,0.00017158,87409.0,87408.0,0.14770594]
[1765942291666,0.00017158,87409.0,87408.0,0.14870594]
[1765942292264,0.00017158,87409.0,87408.0,0.0870431]
[1765942292459,0.00017158,87409.0,87408.0,0.0850431]
[1765942292665,0.00017158,87409.0,87408.0,0.0860431]
[1765942293170,0.02888158,87409.0,87408.0,0.0860431]
[1765942293561,0.05713158,87409.0,87408.0,0.05767]
[1765942295471,0.05713158,87409.0,87408.0,0.05667]
[1765942295969,0.05813158,87409.0,87408.0,0.05667]
[1765942296472,0.05713158,87409.0,87408.0,0.05667]
[1765942296763,0.05813158,87409.0,87408.0,0.05667]
[1765942299076,0.05713158,87409.0,87408.0,0.05667]
[1765942299373,0.05813158,87409.0,87408.0,0.05667]
[1765942306677,0.05813158,87409.0,87408.0,0.0681131]
[1765942308281,0.05813158,87409.0,87408.0,0.0765831]
[1765942308482,0.02988158,87409.0,87408.0,0.0765831]
[1765942308681,0.05726158,87409.0,87408.0,0.0765831]
[1765942309281,0.05626158,87409.0,87408.0,0.0765831]
[1765942312683,0.05726158,87409.0,87408.0,0.0765831]
[1765942312881,0.02976158,87409.0,87408.0,0.0765831]
[1765942313074,0.02976158,87409.0,87408.0,0.13824594]
[1765942313075,0.05614158,87409.0,87408.0,0.13824594]
[1765942313277,0.05714158,87409.0,87408.0,0.13824594]
[1765942314480,0.05714158,87409.0,87408.0,0.0765831]
[1765942314788,0.02876158,87409.0,87408.0,0.0765831]
[1765942315487,0.00017158,87409.0,87408.0,0.0775831]
[1765942316082,0.00017158,87409.0,87408.0,0.0765831]
[1765942316280,0.00017158,87409.0,87408.0,0.0775831]
[1765942318688,0.01161448,87409.0,87408.0,0.0775831]
[1765942318887,0.04020448,87409.0,87408.0,0.0775831]
[1765942319088,0.01161448,87409.0,87408.0,0.0775831]
[1765942320987,0.00017158,87409.0,87408.0,0.0775831]
[1765942322191,0.05614158,87409.0,87408.0,0.0775831]
[1765942322392,0.05614158,87409.0,87408.0,0.05767]
[1765942323693,0.05614158,87409.0,87400.0,0.01326]
[1765942323694,0.07263,87396.0,87395.0,0.47051859]
[1765942323888,0.0840746,87396.0,87395.0,0.05513]
[1765942324201,0.47015904,87396.0,87395.0,0.11694569]
[1765942324587,0.47015904,87396.0,87395.0,0.06181569]
[1765942325490,0.47015904,87396.0,87395.0,0.001]
[1765942325991,0.05633,87384.0,87383.0,0.06181569]
[1765942326298,0.0677765,87382.0,87381.0,0.11984569]
[1765942326497,0.09306094,87382.0,87381.0,0.11984569]
[1765942327100,0.09206094,87382.0,87381.0,0.11984569]
[1765942327602,0.0667765,87382.0,87381.0,0.05903]
[1765942327899,0.0667765,87382.0,87381.0,0.003]
[1765942330406,0.0667765,87382.0,87381.0,0.06103]
[1765942330605,0.0667765,87382.0,87381.0,0.03149]
[1765942330793,0.0667765,87382.0,87381.0,0.003]
[1765942333494,0.0667765,87382.0,87381.0,0.03149]
[1765942334303,0.0667765,87382.0,87381.0,0.06103]
[1765942334894,0.05533,87382.0,87381.0,0.06103]
[1765942336002,0.02775,87382.0,87381.0,0.06103]
[1765942336205,0.05650158,87390.0,87389.0,0.05803]
[1765942347211,0.0677769,87379.0,87378.0,0.12006075]
[1765942347400,0.0677769,87379.0,87378.0,0.05824506]
[1765942348308,0.0677769,87379.0,87378.0,0.05924506]
[1765942348610,0.0677769,87379.0,87378.0,0.06124506]
[1765942350612,0.0677769,87379.0,87378.0,0.03170506]
[1765942350913,0.0677769,87379.0,87378.0,0.06124506]
[1765942352411,0.0677769,87379.0,87378.0,0.00321506]
[1765942355418,0.0677769,87379.0,87378.0,0.06029506]
[1765942357822,0.0677769,87379.0,87378.0,0.03170506]
[1765942358020,0.0677769,87379.0,87378.0,0.00321506]
[1765942361733,0.13315144,87379.0,87378.0,0.00321506]
[1765942361919,0.13315144,87379.0,87372.0,9.683e-05]
[1765942361920,0.0662177,87373.0,87372.0,9.683e-05]
[1765942362115,0.13159224,87373.0,87372.0,9.683e-05]
[1765942362426,0.09159224,87373.0,87372.0,9.683e-05]
[1765942363522,0.09159224,87373.0,87372.0,0.00209683]
[1765942363728,0.0662177,87373.0,87372.0,0.00209683]
[1765942363922,0.0915736,87373.0,87372.0,0.00209683]
[1765942364129,0.0915736,87373.0,87372.0,0.00409683]
[1765942368027,0.1315736,87373.0,87372.0,0.00409683]
[1765942368531,0.0915736,87373.0,87372.0,0.00409683]
[1765942370634,0.1315736,87373.0,87372.0,0.00409683]
[1765942371228,0.06622,87355.0,87354.0,0.12041513]
[1765942372236,0.06634083,87355.0,87354.0,0.05864]
[1765942372436,0.06634083,87355.0,87354.0,0.06264]
[1765942373231,0.06634083,87355.0,87354.0,0.06664]
[1765942373437,0.05489083,87355.0,87354.0,0.06664]
[1765942374036,8.3e-07,87355.0,87354.0,0.46664]
[1765942374230,0.00017169,87363.0,87362.0,0.0700891]
[1765942374422,0.05477,87382.0,87381.0,0.05864]
[1765942374625,0.3608,87384.0,87383.0,0.05864]
[1765942374626,0.3722462,87384.0,87383.0,0.05864]
[1765942374826,0.3608,87384.0,87383.0,0.05864]
[1765942375022,0.3785,87396.0,87385.0,0.07495]
[1765942375023,0.0114461,87386.0,87385.0,0.07495]
[1765942375624,0.0662161,87386.0,87385.0,0.07495]
[1765942376238,0.0672161,87386.0,87385.0,0.07495]
[1765942379541,0.0124461,87386.0,87385.0,0.07495]
[1765942379742,0.0395961,87386.0,87385.0,0.07495]
[1765942379943,0.0124461,87386.0,87385.0,0.07495]
[1765942381932,0.0124461,87386.0,87385.0,0.05864]
[1765942381933,0.0672161,87386.0,87385.0,0.05864]
[1765942382937,0.0672161,87386.0,87385.0,0.07495]
[1765942384127,0.0672161,87386.0,87379.0,0.05554]
[1765942384128,0.0834567,87380.0,87379.0,0.05554]
[1765942384532,0.0693767,87380.0,87379.0,0.05554]
[1765942385337,0.0866167,87380.0,87379.0,0.05554]
[1765942385533,0.0866167,87380.0,87379.0,0.05654]
[1765942386234,0.0693767,87380.0,87379.0,0.05654]
[1765942387138,0.0866167,87380.0,87379.0,0.05654]
[1765942388842,0.0866167,87380.0,87379.0,0.02954]
[1765942389140,0.0866167,87380.0,87379.0,0.05654]
[1765942390346,0.0693767,87380.0,87379.0,0.05654]
[1765942390536,0.401416,87386.0,87385.0,0.0721]
[1765942390736,0.430176,87386.0,87385.0,0.0721]
[1765942391938,0.402416,87386.0,87385.0,0.0721]
[1765942392444,0.431176,87386.0,87385.0,0.0721]
[1765942393743,0.431176,87386.0,87385.0,0.05554]
[1765942395447,0.431176,87386.0,87385.0,0.02854]
[1765942396248,0.431176,87386.0,87385.0,0.05554]
[1765942398444,0.431176,87386.0,87377.0,0.00017169]
[1765942398445,0.069377,87378.0,87377.0,0.02871169]
[1765942399045,0.069377,87378.0,87377.0,0.05571169]
[1765942399654,0.069377,87378.0,87377.0,0.05671169]